[Event "Titled Tuesday Blitz January 31 Late 2023"]
[White "Hansen, Eric"]
[Black "Corrales Jimenez, Fidel"]
[WhiteFideId "2606771"]
[BlackFideId "3506690"]
[WhiteElo "2609"]
[BlackElo "2489"]
[Result "1/2-1/2"]
[Round "04"]
[TimeControl "180+2"]
[Date "2023.01.31"]
[WhiteClock "0:00:05"]
[BlackClock "0:00:04"]

1. c4 {[%clk 0:03:00]}  c6 {[%clk 0:02:55]} 2. Nf3 {[%clk 0:03:00]}  d5 {[%clk 0:02:55]} 3. e3 {[%clk 0:02:59]}  Nf6 {[%clk 0:02:56]} 4. b3 {[%clk 0:02:52]}  g6 {[%clk 0:02:55]} 5. Bb2 {[%clk 0:02:52]}  Bg7 {[%clk 0:02:55]} 6. Be2 {[%clk 0:02:52]}  O-O {[%clk 0:02:56]} 7. O-O {[%clk 0:02:53]}  b6 {[%clk 0:02:53]} 8. cxd5 {[%clk 0:02:50]}  cxd5 {[%clk 0:02:52]} 9. d4 {[%clk 0:02:49]}  Ba6 {[%clk 0:02:52]} 10. Bxa6 {[%clk 0:02:41]}  Nxa6 {[%clk 0:02:53]} 11. Qe2 {[%clk 0:02:41]}  Qc8 {[%clk 0:02:46]} 12. Ba3 {[%clk 0:02:33]}  Re8 {[%clk 0:02:41]} 13. Rc1 {[%clk 0:02:33]}  Qb7 {[%clk 0:02:41]} 14. Nc3 {[%clk 0:02:34]}  Nc7 {[%clk 0:02:39]} 15. Ne5 {[%clk 0:02:33]}  e6 {[%clk 0:02:33]} 16. Bd6 {[%clk 0:02:30]}  Rac8 {[%clk 0:02:26]} 17. g3 {[%clk 0:02:26]}  Bf8 {[%clk 0:02:16]} 18. Bxc7 {[%clk 0:02:04]}  Rxc7 {[%clk 0:02:15]} 19. Nb5 {[%clk 0:02:04]}  Rcc8 {[%clk 0:02:07]} 20. Rc2 {[%clk 0:01:33]}  a6 {[%clk 0:02:05]} 21. Nc3 {[%clk 0:01:33]}  Bb4 {[%clk 0:01:56]} 22. Rac1 {[%clk 0:01:10]}  Ba3 {[%clk 0:01:56]} 23. Rd1 {[%clk 0:01:10]}  Rc7 {[%clk 0:01:53]} 24. Nb1 {[%clk 0:00:56]}  Rxc2 {[%clk 0:01:53]} 25. Qxc2 {[%clk 0:00:57]}  Rc8 {[%clk 0:01:52]} 26. Qe2 {[%clk 0:00:55]}  Bd6 {[%clk 0:01:51]} 27. Nd3 {[%clk 0:00:50]}  b5 {[%clk 0:01:42]} 28. b4 {[%clk 0:00:46]}  Rc4 {[%clk 0:01:33]} 29. a3 {[%clk 0:00:46]}  a5 {[%clk 0:01:29]} 30. Qb2 {[%clk 0:00:43]}  axb4 {[%clk 0:01:28]} 31. axb4 {[%clk 0:00:43]}  Ne4 {[%clk 0:00:46]} 32. Na3 {[%clk 0:00:43]}  Rc8 {[%clk 0:00:39]} 33. Nc5 {[%clk 0:00:43]}  Bxc5 {[%clk 0:00:26]} 34. dxc5 {[%clk 0:00:43]}  d4 {[%clk 0:00:18]} 35. Rxd4 {[%clk 0:00:14]}  Ng5 {[%clk 0:00:18]} 36. e4 {[%clk 0:00:13]}  Nf3+ {[%clk 0:00:17]} 37. Kg2 {[%clk 0:00:14]}  Nxd4 {[%clk 0:00:18]} 38. Qxd4 {[%clk 0:00:14]}  h5 {[%clk 0:00:13]} 39. h4 {[%clk 0:00:14]}  Kh7 {[%clk 0:00:12]} 40. Qd3 {[%clk 0:00:13]}  Rb8 {[%clk 0:00:12]} 41. Nc2 {[%clk 0:00:13]}  e5 {[%clk 0:00:12]} 42. Ne3 {[%clk 0:00:13]}  Ra8 {[%clk 0:00:11]} 43. Nd5 {[%clk 0:00:13]}  Qc6 {[%clk 0:00:10]} 44. Qc3 {[%clk 0:00:13]}  Re8 {[%clk 0:00:08]} 45. Qf3 {[%clk 0:00:12]}  Kg7 {[%clk 0:00:08]} 46. Qc3 {[%clk 0:00:13]}  f6 {[%clk 0:00:07]} 47. Qa3 {[%clk 0:00:13]}  Rd8 {[%clk 0:00:07]} 48. Qa7+ {[%clk 0:00:12]}  Rd7 {[%clk 0:00:07]} 49. Qb8 {[%clk 0:00:10]}  Rf7 {[%clk 0:00:07]} 50. Qd8 {[%clk 0:00:08]}  f5 {[%clk 0:00:07]} 51. f3 {[%clk 0:00:05]}  fxe4 {[%clk 0:00:07]} 52. fxe4 {[%clk 0:00:05]}  Qe6 {[%clk 0:00:07]} 53. Qg5 {[%clk 0:00:06]}  Qa6 {[%clk 0:00:06]} 54. Qxe5+ {[%clk 0:00:05]}  Kh7 {[%clk 0:00:06]} 55. Nf4 {[%clk 0:00:03]}  Qa2+ {[%clk 0:00:06]} 56. Kh3 {[%clk 0:00:03]}  Qb1 {[%clk 0:00:06]} 57. Kg2 {[%clk 0:00:03]}  Qc2+ {[%clk 0:00:07]} 58. Kh3 {[%clk 0:00:03]}  Qd1 {[%clk 0:00:07]} 59. Kg2 {[%clk 0:00:03]}  Qd2+ {[%clk 0:00:07]} 60. Kh3 {[%clk 0:00:04]}  Qe1 {[%clk 0:00:07]} 61. Kg2 {[%clk 0:00:04]}  Qxb4 {[%clk 0:00:07]} 62. Qd5 {[%clk 0:00:04]}  Qb2+ {[%clk 0:00:06]} 63. Kh3 {[%clk 0:00:04]}  Rg7 {[%clk 0:00:04]} 64. Ne6 {[%clk 0:00:03]}  Qc1 {[%clk 0:00:02]} 65. Ng5+ {[%clk 0:00:02]}  Kh6 {[%clk 0:00:03]} 66. Kg2 {[%clk 0:00:03]}  Qc2+ {[%clk 0:00:02]} 67. Kh3 {[%clk 0:00:03]}  Qb1 {[%clk 0:00:02]} 68. Kg2 {[%clk 0:00:03]}  Qb2+ {[%clk 0:00:01]} 69. Kh3 {[%clk 0:00:04]}  Qc1 {[%clk 0:00:02]} 70. Kg2 {[%clk 0:00:04]}  Qc2+ {[%clk 0:00:03]} 71. Kh3 {[%clk 0:00:05]}  Qb1 {[%clk 0:00:03]} 72. Kg2 {[%clk 0:00:05]}  Qc2+ {[%clk 0:00:04]} 1/2-1/2


[Site "https://www.chess.com"]

[Event "Titled Tuesday Blitz January 31 Late 2023"]
[White "Milikow, Yoav"]
[Black "Kazakouski, Valery"]
[WhiteFideId "2822237"]
[BlackFideId "13507443"]
[WhiteElo "2394"]
[BlackElo "2539"]
[Result "0-1"]
[Round "04"]
[TimeControl "180+2"]
[Date "2023.01.31"]
[WhiteClock "0:00:14"]
[BlackClock "0:01:31"]

1. d4 {[%clk 0:02:57]}  Nf6 {[%clk 0:02:59]} 2. c4 {[%clk 0:02:57]}  e6 {[%clk 0:02:58]} 3. Nc3 {[%clk 0:02:57]}  Bb4 {[%clk 0:02:58]} 4. Qc2 {[%clk 0:02:56]}  Nc6 {[%clk 0:02:58]} 5. Nf3 {[%clk 0:02:55]}  d6 {[%clk 0:02:58]} 6. Bd2 {[%clk 0:02:55]}  O-O {[%clk 0:02:58]} 7. a3 {[%clk 0:02:53]}  Bxc3 {[%clk 0:02:59]} 8. Bxc3 {[%clk 0:02:54]}  Qe7 {[%clk 0:02:59]} 9. e4 {[%clk 0:02:51]}  e5 {[%clk 0:03:00]} 10. d5 {[%clk 0:02:42]}  Nb8 {[%clk 0:03:00]} 11. Nd2 {[%clk 0:02:40]}  Nh5 {[%clk 0:02:58]} 12. g3 {[%clk 0:02:34]}  a5 {[%clk 0:02:58]} 13. Be2 {[%clk 0:02:34]}  g6 {[%clk 0:02:57]} 14. O-O-O {[%clk 0:02:11]}  Ng7 {[%clk 0:02:48]} 15. f4 {[%clk 0:02:00]}  Nd7 {[%clk 0:02:48]} 16. f5 {[%clk 0:01:56]}  Nc5 {[%clk 0:02:45]} 17. g4 {[%clk 0:01:55]}  c6 {[%clk 0:02:28]} 18. Rdf1 {[%clk 0:01:47]}  f6 {[%clk 0:02:28]} 19. a4 {[%clk 0:01:40]}  Bd7 {[%clk 0:02:26]} 20. b3 {[%clk 0:01:39]}  Rfb8 {[%clk 0:02:16]} 21. g5 {[%clk 0:01:30]}  gxf5 {[%clk 0:02:16]} 22. exf5 {[%clk 0:01:28]}  cxd5 {[%clk 0:02:16]} 23. cxd5 {[%clk 0:01:22]}  b5 {[%clk 0:02:16]} 24. axb5 {[%clk 0:01:07]}  Bxb5 {[%clk 0:02:17]} 25. Bc4 {[%clk 0:00:42]}  a4 {[%clk 0:02:11]} 26. b4 {[%clk 0:00:32]}  Nb3+ {[%clk 0:02:11]} 27. Kd1 {[%clk 0:00:31]}  Nxd2 {[%clk 0:02:06]} 28. Bxb5 {[%clk 0:00:32]}  Nxf1 {[%clk 0:01:59]} 29. Bxf1 {[%clk 0:00:33]}  a3 {[%clk 0:01:57]} 30. Bd3 {[%clk 0:00:21]}  a2 {[%clk 0:01:57]} 31. Kd2 {[%clk 0:00:21]}  fxg5 {[%clk 0:01:49]} 32. Ra1 {[%clk 0:00:20]}  g4 {[%clk 0:01:46]} 33. Kd1 {[%clk 0:00:17]}  Qg5 {[%clk 0:01:43]} 34. Qf2 {[%clk 0:00:16]}  Ra3 {[%clk 0:01:40]} 35. Bd2 {[%clk 0:00:13]}  Rxd3 {[%clk 0:01:38]} 36. Rxa2 {[%clk 0:00:13]}  Qxf5 {[%clk 0:01:36]} 37. Qa7 {[%clk 0:00:14]}  Qf1+ {[%clk 0:01:31]} 38. Kc2 {[%clk 0:00:14]}  Rc8+ {[%clk 0:01:31]} 0-1


[Site "https://www.chess.com"]

[Event "Titled Tuesday Blitz January 31 Late 2023"]
[White "Grigoriants, Sergey"]
[Black "Musovic, Armin"]
[WhiteFideId "4130804"]
[BlackFideId "939935"]
[WhiteElo "2562"]
[BlackElo "2261"]
[Result "1-0"]
[Round "04"]
[TimeControl "180+2"]
[Date "2023.01.31"]
[WhiteClock "0:00:17"]
[BlackClock "0:00:08"]

1. d4 {[%clk 0:02:54]}  d5 {[%clk 0:03:00]} 2. c4 {[%clk 0:02:54]}  c5 {[%clk 0:03:00]} 3. Nf3 {[%clk 0:02:53]}  Nf6 {[%clk 0:03:00]} 4. cxd5 {[%clk 0:02:49]}  cxd4 {[%clk 0:03:00]} 5. Qxd4 {[%clk 0:02:36]}  Qxd5 {[%clk 0:03:00]} 6. Nc3 {[%clk 0:02:36]}  Qxd4 {[%clk 0:03:00]} 7. Nxd4 {[%clk 0:02:37]}  a6 {[%clk 0:03:01]} 8. g3 {[%clk 0:02:37]}  e5 {[%clk 0:03:01]} 9. Nc2 {[%clk 0:02:36]}  Bf5 {[%clk 0:02:59]} 10. Ne3 {[%clk 0:02:33]}  Be6 {[%clk 0:02:59]} 11. Bg2 {[%clk 0:02:33]}  Nc6 {[%clk 0:03:00]} 12. O-O {[%clk 0:02:30]}  O-O-O {[%clk 0:02:59]} 13. b3 {[%clk 0:02:12]}  Nd4 {[%clk 0:02:50]} 14. Bb2 {[%clk 0:02:09]}  Kb8 {[%clk 0:02:47]} 15. Nc4 {[%clk 0:01:58]}  Bxc4 {[%clk 0:02:44]} 16. bxc4 {[%clk 0:01:58]}  Bb4 {[%clk 0:02:45]} 17. Kh1 {[%clk 0:01:40]}  h5 {[%clk 0:02:07]} 18. e3 {[%clk 0:01:31]}  Nf5 {[%clk 0:01:37]} 19. Nd5 {[%clk 0:01:18]}  Nxd5 {[%clk 0:01:32]} 20. Bxd5 {[%clk 0:01:18]}  f6 {[%clk 0:01:31]} 21. Rab1 {[%clk 0:01:19]}  Bc5 {[%clk 0:01:08]} 22. Bc3 {[%clk 0:01:08]}  Nd6 {[%clk 0:00:54]} 23. Rb3 {[%clk 0:01:03]}  Ka7 {[%clk 0:00:44]} 24. Rfb1 {[%clk 0:01:02]}  Rd7 {[%clk 0:00:44]} 25. Kg2 {[%clk 0:01:00]}  h4 {[%clk 0:00:42]} 26. a4 {[%clk 0:00:58]}  h3+ {[%clk 0:00:28]} 27. Kf3 {[%clk 0:00:57]}  Re7 {[%clk 0:00:25]} 28. g4 {[%clk 0:00:53]}  g5 {[%clk 0:00:16]} 29. a5 {[%clk 0:00:50]}  Rhh7 {[%clk 0:00:17]} 30. Kg3 {[%clk 0:00:32]}  Reg7 {[%clk 0:00:16]} 31. Rb6 {[%clk 0:00:27]}  Bxb6 {[%clk 0:00:17]} 32. Rxb6 {[%clk 0:00:27]}  Rd7 {[%clk 0:00:15]} 33. Bb4 {[%clk 0:00:25]}  Ne8 {[%clk 0:00:11]} 34. Bc5 {[%clk 0:00:24]}  Kb8 {[%clk 0:00:09]} 35. Be4 {[%clk 0:00:21]}  Rhg7 {[%clk 0:00:07]} 36. Re6 {[%clk 0:00:21]}  Rd8 {[%clk 0:00:07]} 37. Kxh3 {[%clk 0:00:18]}  Rc8 {[%clk 0:00:07]} 38. Bb6 {[%clk 0:00:18]}  Nc7 {[%clk 0:00:04]} 39. Rxf6 {[%clk 0:00:18]}  Na8 {[%clk 0:00:03]} 40. c5 {[%clk 0:00:17]}  Nxb6 {[%clk 0:00:03]} 41. cxb6 {[%clk 0:00:18]}  Rd8 {[%clk 0:00:02]} 42. Kg3 {[%clk 0:00:17]}  Rh8 {[%clk 0:00:02]} 43. Re6 {[%clk 0:00:17]}  Rd7 {[%clk 0:00:01]} 44. Rxe5 {[%clk 0:00:17]}  Rd1 {[%clk 0:00:01]} 45. Rxg5 {[%clk 0:00:15]}  Rg1+ {[%clk 0:00:01]} 46. Bg2 {[%clk 0:00:16]}  Ra1 {[%clk 0:00:02]} 47. Rg7 {[%clk 0:00:15]}  Rxa5 {[%clk 0:00:01]} 48. Rxb7+ {[%clk 0:00:15]}  Kc8 {[%clk 0:00:02]} 49. Ra7 {[%clk 0:00:16]}  Rh6 {[%clk 0:00:02]} 50. Ra8+ {[%clk 0:00:15]}  Kd7 {[%clk 0:00:03]} 51. b7 {[%clk 0:00:16]}  Rb6 {[%clk 0:00:03]} 52. b8=Q {[%clk 0:00:16]}  Rxb8 {[%clk 0:00:04]} 53. Rxb8 {[%clk 0:00:17]}  Rb5 {[%clk 0:00:05]} 54. Rxb5 {[%clk 0:00:16]}  axb5 {[%clk 0:00:06]} 55. Be4 {[%clk 0:00:16]}  b4 {[%clk 0:00:06]} 56. h4 {[%clk 0:00:16]}  Kd6 {[%clk 0:00:07]} 57. h5 {[%clk 0:00:17]}  Ke5 {[%clk 0:00:08]} 58. Bb1 {[%clk 0:00:17]} 1-0


[Site "https://www.chess.com"]

[Event "Titled Tuesday Blitz January 31 Late 2023"]
[White "Sanchez, Robert"]
[Black "Carlsen, Magnus"]
[WhiteFideId "2034360"]
[BlackFideId "1503014"]
[WhiteElo "1966"]
[BlackElo "2853"]
[Result "0-1"]
[Round "04"]
[TimeControl "180+2"]
[Date "2023.01.31"]
[WhiteClock "0:00:08"]
[BlackClock "0:01:06"]

1. e4 {[%clk 0:02:55]}  c5 {[%clk 0:02:58]} 2. Nf3 {[%clk 0:02:56]}  e6 {[%clk 0:02:58]} 3. d4 {[%clk 0:02:56]}  cxd4 {[%clk 0:02:59]} 4. Nxd4 {[%clk 0:02:56]}  Nc6 {[%clk 0:02:59]} 5. Nc3 {[%clk 0:02:56]}  a6 {[%clk 0:02:59]} 6. Nxc6 {[%clk 0:02:47]}  bxc6 {[%clk 0:02:59]} 7. Bd3 {[%clk 0:02:47]}  d5 {[%clk 0:02:59]} 8. O-O {[%clk 0:02:46]}  Nf6 {[%clk 0:02:56]} 9. Qe2 {[%clk 0:02:40]}  Bb7 {[%clk 0:02:51]} 10. f4 {[%clk 0:02:38]}  Be7 {[%clk 0:02:22]} 11. e5 {[%clk 0:02:30]}  Nd7 {[%clk 0:02:21]} 12. f5 {[%clk 0:02:27]}  exf5 {[%clk 0:02:21]} 13. Bxf5 {[%clk 0:02:17]}  O-O {[%clk 0:02:21]} 14. Bf4 {[%clk 0:02:04]}  Nc5 {[%clk 0:02:19]} 15. Qg4 {[%clk 0:01:57]}  g6 {[%clk 0:02:06]} 16. Bh6 {[%clk 0:01:51]}  Qb6 {[%clk 0:01:58]} 17. Kh1 {[%clk 0:01:49]}  Qxb2 {[%clk 0:01:58]} 18. Bxf8 {[%clk 0:01:28]}  Rxf8 {[%clk 0:01:57]} 19. Qg3 {[%clk 0:00:55]}  d4 {[%clk 0:01:44]} 20. Ne4 {[%clk 0:00:42]}  Nxe4 {[%clk 0:01:44]} 21. Bxe4 {[%clk 0:00:41]}  Bc8 {[%clk 0:01:39]} 22. Rab1 {[%clk 0:00:26]}  Qxa2 {[%clk 0:01:37]} 23. Rb8 {[%clk 0:00:25]}  Be6 {[%clk 0:01:33]} 24. Rxf8+ {[%clk 0:00:24]}  Bxf8 {[%clk 0:01:34]} 25. h4 {[%clk 0:00:20]}  Qa5 {[%clk 0:01:14]} 26. h5 {[%clk 0:00:17]}  Bg7 {[%clk 0:01:12]} 27. hxg6 {[%clk 0:00:15]}  hxg6 {[%clk 0:01:13]} 28. Bxg6 {[%clk 0:00:13]}  fxg6 {[%clk 0:01:11]} 29. Qxg6 {[%clk 0:00:13]}  Qxe5 {[%clk 0:01:11]} 30. Qe8+ {[%clk 0:00:12]}  Kh7 {[%clk 0:01:11]} 31. Rf3 {[%clk 0:00:10]}  Qe1+ {[%clk 0:01:07]} 32. Kh2 {[%clk 0:00:10]}  Be5+ {[%clk 0:01:07]} 33. g3 {[%clk 0:00:08]}  Qe2+ {[%clk 0:01:06]} 0-1


[Site "https://www.chess.com"]

[Event "Titled Tuesday Blitz January 31 Late 2023"]
[White "So, Wesley"]
[Black "EREBUNI91"]
[WhiteFideId "5202213"]
[WhiteElo "2760"]
[BlackElo "2685"]
[Result "1-0"]
[Round "04"]
[TimeControl "180+2"]
[Date "2023.01.31"]
[WhiteClock "0:00:45"]
[BlackClock "0:00:07"]

1. d4 {[%clk 0:03:00]}  Nf6 {[%clk 0:02:58]} 2. c4 {[%clk 0:03:00]}  e6 {[%clk 0:02:56]} 3. Nc3 {[%clk 0:03:00]}  Bb4 {[%clk 0:02:52]} 4. e3 {[%clk 0:03:01]}  O-O {[%clk 0:02:48]} 5. Bd3 {[%clk 0:03:01]}  d5 {[%clk 0:02:47]} 6. Nf3 {[%clk 0:03:01]}  dxc4 {[%clk 0:02:45]} 7. Bxc4 {[%clk 0:03:02]}  c5 {[%clk 0:02:44]} 8. O-O {[%clk 0:03:02]}  cxd4 {[%clk 0:02:41]} 9. exd4 {[%clk 0:03:03]}  b6 {[%clk 0:02:39]} 10. Bg5 {[%clk 0:03:03]}  Bb7 {[%clk 0:02:37]} 11. Rc1 {[%clk 0:03:03]}  Be7 {[%clk 0:02:20]} 12. Qe2 {[%clk 0:02:37]}  Nc6 {[%clk 0:01:56]} 13. Rfd1 {[%clk 0:02:20]}  Nb4 {[%clk 0:01:54]} 14. Ne5 {[%clk 0:02:18]}  Rc8 {[%clk 0:01:51]} 15. Nxf7 {[%clk 0:01:59]}  Rxf7 {[%clk 0:01:49]} 16. Bxe6 {[%clk 0:02:00]}  Qd6 {[%clk 0:00:57]} 17. Bxc8 {[%clk 0:01:40]}  Bxc8 {[%clk 0:00:56]} 18. Ne4 {[%clk 0:01:39]}  Qe6 {[%clk 0:00:52]} 19. Bxf6 {[%clk 0:01:35]}  gxf6 {[%clk 0:00:39]} 20. d5 {[%clk 0:01:35]}  Nxd5 {[%clk 0:00:38]} 21. Rxd5 {[%clk 0:01:36]}  Qxd5 {[%clk 0:00:39]} 22. Rxc8+ {[%clk 0:01:35]}  Bf8 {[%clk 0:00:37]} 23. b3 {[%clk 0:01:20]}  f5 {[%clk 0:00:32]} 24. Ng3 {[%clk 0:01:17]}  f4 {[%clk 0:00:28]} 25. Qg4+ {[%clk 0:01:12]}  Kh8 {[%clk 0:00:19]} 26. Nf1 {[%clk 0:01:12]}  Qf5 {[%clk 0:00:18]} 27. h3 {[%clk 0:01:01]}  Qxg4 {[%clk 0:00:17]} 28. hxg4 {[%clk 0:01:02]}  Kg7 {[%clk 0:00:18]} 29. Rc4 {[%clk 0:01:00]}  Bc5 {[%clk 0:00:17]} 30. b4 {[%clk 0:00:59]}  Bd6 {[%clk 0:00:16]} 31. Nd2 {[%clk 0:01:00]}  Re7 {[%clk 0:00:15]} 32. Kf1 {[%clk 0:01:00]}  b5 {[%clk 0:00:14]} 33. Rd4 {[%clk 0:00:59]}  Be5 {[%clk 0:00:13]} 34. Re4 {[%clk 0:00:59]}  Kf6 {[%clk 0:00:14]} 35. Ke2 {[%clk 0:00:58]}  Rd7 {[%clk 0:00:13]} 36. Nf3 {[%clk 0:00:56]}  Bd6 {[%clk 0:00:13]} 37. Rd4 {[%clk 0:00:56]}  Re7+ {[%clk 0:00:13]} 38. Kd3 {[%clk 0:00:56]}  Bc7 {[%clk 0:00:13]} 39. Rd5 {[%clk 0:00:56]}  a6 {[%clk 0:00:13]} 40. Nd4 {[%clk 0:00:54]}  Kg6 {[%clk 0:00:11]} 41. Kd2 {[%clk 0:00:46]}  Kf7 {[%clk 0:00:09]} 42. f3 {[%clk 0:00:44]}  Bb6 {[%clk 0:00:08]} 43. Rd6 {[%clk 0:00:44]}  Bxd4 {[%clk 0:00:07]} 44. Rxd4 {[%clk 0:00:45]}  Re3 {[%clk 0:00:07]} 45. Rxf4+ {[%clk 0:00:45]} 1-0


[Site "https://www.chess.com"]

[Event "Titled Tuesday Blitz January 31 Late 2023"]
[White "Chor, Kevin"]
[Black "Caruana, Fabiano"]
[WhiteFideId "2090740"]
[BlackFideId "2020009"]
[WhiteElo "1944"]
[BlackElo "2764"]
[Result "0-1"]
[Round "04"]
[TimeControl "180+2"]
[Date "2023.01.31"]
[WhiteClock "0:00:04"]
[BlackClock "0:01:21"]

1. e4 {[%clk 0:03:00]}  c5 {[%clk 0:02:58]} 2. Nf3 {[%clk 0:02:52]}  d6 {[%clk 0:02:57]} 3. d4 {[%clk 0:02:45]}  cxd4 {[%clk 0:02:58]} 4. Nxd4 {[%clk 0:02:46]}  Nf6 {[%clk 0:02:59]} 5. Nc3 {[%clk 0:02:45]}  a6 {[%clk 0:02:59]} 6. Be2 {[%clk 0:02:44]}  e5 {[%clk 0:02:58]} 7. Nb3 {[%clk 0:02:44]}  Be7 {[%clk 0:02:58]} 8. O-O {[%clk 0:02:43]}  O-O {[%clk 0:02:58]} 9. Be3 {[%clk 0:02:42]}  Be6 {[%clk 0:02:59]} 10. Nd5 {[%clk 0:02:42]}  Bxd5 {[%clk 0:02:58]} 11. exd5 {[%clk 0:02:42]}  Nbd7 {[%clk 0:02:59]} 12. Qd2 {[%clk 0:02:42]}  a5 {[%clk 0:02:51]} 13. c4 {[%clk 0:02:39]}  b6 {[%clk 0:02:49]} 14. f3 {[%clk 0:02:15]}  Nc5 {[%clk 0:02:49]} 15. Nxc5 {[%clk 0:02:12]}  bxc5 {[%clk 0:02:49]} 16. b3 {[%clk 0:02:11]}  Nd7 {[%clk 0:02:46]} 17. Rad1 {[%clk 0:02:09]}  f5 {[%clk 0:02:46]} 18. a3 {[%clk 0:02:07]}  Qc7 {[%clk 0:02:40]} 19. Bg5 {[%clk 0:02:05]}  Bxg5 {[%clk 0:02:39]} 20. Qxg5 {[%clk 0:02:06]}  Qd8 {[%clk 0:02:36]} 21. Qe3 {[%clk 0:02:03]}  Qf6 {[%clk 0:02:24]} 22. Rb1 {[%clk 0:01:59]}  Rfb8 {[%clk 0:02:23]} 23. Bd3 {[%clk 0:01:54]}  g6 {[%clk 0:02:21]} 24. Bc2 {[%clk 0:01:54]}  Rb7 {[%clk 0:02:19]} 25. Qc3 {[%clk 0:01:52]}  Qd8 {[%clk 0:02:16]} 26. f4 {[%clk 0:01:32]}  Qf6 {[%clk 0:02:14]} 27. fxe5 {[%clk 0:01:31]}  Nxe5 {[%clk 0:02:13]} 28. Rbe1 {[%clk 0:01:18]}  Kg7 {[%clk 0:02:12]} 29. Re2 {[%clk 0:01:15]}  h5 {[%clk 0:02:11]} 30. Rfe1 {[%clk 0:01:14]}  Re7 {[%clk 0:02:08]} 31. b4 {[%clk 0:01:10]}  axb4 {[%clk 0:02:06]} 32. axb4 {[%clk 0:01:11]}  cxb4 {[%clk 0:02:03]} 33. Qxb4 {[%clk 0:01:09]}  Rae8 {[%clk 0:02:03]} 34. Kh1 {[%clk 0:00:55]}  Ng4 {[%clk 0:01:57]} 35. Rxe7+ {[%clk 0:00:41]}  Rxe7 {[%clk 0:01:58]} 36. Rxe7+ {[%clk 0:00:41]}  Qxe7 {[%clk 0:01:56]} 37. Qc3+ {[%clk 0:00:42]}  Qf6 {[%clk 0:01:52]} 38. Qe1 {[%clk 0:00:29]}  Qe5 {[%clk 0:01:38]} 39. Qxe5+ {[%clk 0:00:22]}  Nxe5 {[%clk 0:01:39]} 40. Bb3 {[%clk 0:00:20]}  Kf6 {[%clk 0:01:39]} 41. g3 {[%clk 0:00:19]}  Nd3 {[%clk 0:01:34]} 42. Kg2 {[%clk 0:00:15]}  Ke5 {[%clk 0:01:35]} 43. Kf3 {[%clk 0:00:14]}  Kd4 {[%clk 0:01:34]} 44. Ba4 {[%clk 0:00:14]}  Kxc4 {[%clk 0:01:30]} 45. Bc6 {[%clk 0:00:14]}  Kd4 {[%clk 0:01:29]} 46. h4 {[%clk 0:00:10]}  Ke5 {[%clk 0:01:28]} 47. Be8 {[%clk 0:00:07]}  Kf6 {[%clk 0:01:26]} 48. Ke3 {[%clk 0:00:08]}  Nc5 {[%clk 0:01:24]} 49. Kd4 {[%clk 0:00:08]}  Ne4 {[%clk 0:01:24]} 50. Kc4 {[%clk 0:00:05]}  Nxg3 {[%clk 0:01:24]} 51. Kb5 {[%clk 0:00:05]}  f4 {[%clk 0:01:23]} 52. Kc6 {[%clk 0:00:04]}  Nf5 {[%clk 0:01:24]} 53. Bd7 {[%clk 0:00:03]}  f3 {[%clk 0:01:22]} 54. Bxf5 {[%clk 0:00:03]}  Kxf5 {[%clk 0:01:22]} 55. Kxd6 {[%clk 0:00:04]}  f2 {[%clk 0:01:23]} 56. Ke7 {[%clk 0:00:04]}  f1=Q {[%clk 0:01:23]} 57. d6 {[%clk 0:00:05]}  Qe2+ {[%clk 0:01:23]} 58. Kf7 {[%clk 0:00:05]}  Qe6+ {[%clk 0:01:23]} 59. Kg7 {[%clk 0:00:06]}  Qf6+ {[%clk 0:01:20]} 60. Kh7 {[%clk 0:00:06]}  Qf7+ {[%clk 0:01:20]} 61. Kh6 {[%clk 0:00:05]}  Kf6 {[%clk 0:01:20]} 62. d7 {[%clk 0:00:04]}  Qg7# {[%clk 0:01:21]} 0-1


[Site "https://www.chess.com"]

[Event "Titled Tuesday Blitz January 31 Late 2023"]
[White "Jobava, Baadur"]
[Black "Blit, Jacques"]
[WhiteFideId "13601520"]
[BlackFideId "114839"]
[WhiteElo "2578"]
[BlackElo "2309"]
[Result "1-0"]
[Round "04"]
[TimeControl "180+2"]
[Date "2023.01.31"]
[WhiteClock "0:00:58"]
[BlackClock "0:00:10"]

1. b3 {[%clk 0:03:00]}  a5 {[%clk 0:02:59]} 2. Bb2 {[%clk 0:03:01]}  a4 {[%clk 0:02:59]} 3. e3 {[%clk 0:02:59]}  Nf6 {[%clk 0:03:00]} 4. Nf3 {[%clk 0:02:59]}  e6 {[%clk 0:03:00]} 5. Be2 {[%clk 0:02:58]}  a3 {[%clk 0:02:59]} 6. Bxf6 {[%clk 0:02:58]}  Qxf6 {[%clk 0:02:59]} 7. d4 {[%clk 0:02:59]}  d6 {[%clk 0:02:58]} 8. O-O {[%clk 0:02:59]}  Be7 {[%clk 0:02:59]} 9. c4 {[%clk 0:02:59]}  O-O {[%clk 0:02:57]} 10. Nc3 {[%clk 0:03:00]}  c6 {[%clk 0:02:54]} 11. b4 {[%clk 0:02:57]}  e5 {[%clk 0:02:53]} 12. Re1 {[%clk 0:02:52]}  Bf5 {[%clk 0:02:53]} 13. Rc1 {[%clk 0:02:50]}  Na6 {[%clk 0:02:49]} 14. Qb3 {[%clk 0:02:49]}  Rfe8 {[%clk 0:02:44]} 15. Qxa3 {[%clk 0:02:44]}  Nc5 {[%clk 0:02:41]} 16. Qb2 {[%clk 0:02:43]}  Nd3 {[%clk 0:02:39]} 17. Bxd3 {[%clk 0:02:44]}  Bxd3 {[%clk 0:02:40]} 18. dxe5 {[%clk 0:02:00]}  dxe5 {[%clk 0:02:40]} 19. c5 {[%clk 0:02:01]}  e4 {[%clk 0:02:35]} 20. Nd4 {[%clk 0:02:00]}  Bd8 {[%clk 0:02:20]} 21. Rcd1 {[%clk 0:01:49]}  Bc7 {[%clk 0:02:13]} 22. a4 {[%clk 0:01:39]}  Re5 {[%clk 0:02:06]} 23. f4 {[%clk 0:01:35]}  exf3 {[%clk 0:01:42]} 24. Rxd3 {[%clk 0:01:32]}  Rg5 {[%clk 0:01:22]} 25. Ne4 {[%clk 0:01:20]}  Bxh2+ {[%clk 0:01:20]} 26. Kh1 {[%clk 0:01:20]}  Qh6 {[%clk 0:01:07]} 27. Nxg5 {[%clk 0:01:19]}  Bg3+ {[%clk 0:00:42]} 28. Nh3 {[%clk 0:01:17]}  fxg2+ {[%clk 0:00:33]} 29. Qxg2 {[%clk 0:01:18]}  Bxe1 {[%clk 0:00:32]} 30. Nf5 {[%clk 0:01:18]}  Qf6 {[%clk 0:00:30]} 31. e4 {[%clk 0:01:17]}  g6 {[%clk 0:00:28]} 32. Rf3 {[%clk 0:01:10]}  Qa1 {[%clk 0:00:25]} 33. Nh6+ {[%clk 0:01:09]}  Kg7 {[%clk 0:00:23]} 34. Rxf7+ {[%clk 0:01:09]}  Kh8 {[%clk 0:00:23]} 35. Rf1 {[%clk 0:01:05]}  Rxa4 {[%clk 0:00:18]} 36. Rf8+ {[%clk 0:00:55]}  Kg7 {[%clk 0:00:18]} 37. Rg8+ {[%clk 0:00:56]}  Kf6 {[%clk 0:00:10]} 38. Qg5+ {[%clk 0:00:57]}  Ke6 {[%clk 0:00:10]} 39. Re8+ {[%clk 0:00:58]} 1-0


[Site "https://www.chess.com"]